Cogmind - Beta 11 X9 @@@ ROGUE MODE // 2021.12.25 @ 13:45:22 // Winter2021/Sauler Player: Yosh Result: Destroyed by as-25198 with Assembled Heavy Rifle Performance ------------- Evolutions (0) 0 Regions Visited (4) 800 Robots Destroyed (21) 105 Value Destroyed (383) 383 Prototype IDs (29) 580 Alien Tech Used (0) 0 Bonus (300) 300 TOTAL SCORE: 2168 Bonus ------- Aligned with FarCom 300 Cogmind --------- Core Integrity 0/250 Matter 292/300 Energy 100/100 System Corruption 5% Temperature Cool (0) Movement Treading (320) Ox2 Location -9/Mines Parts ------- > --- POWER (1) -------- (None) > --- PROPULSION (2) --- Light Treads > --- UTILITY (2) ------ High-capacity Storage Unit Light Armor Plating > --- WEAPON (2) ------- Assault Rifle > --- INVENTORY (20) --- High-capacity Storage Unit High-capacity Matter Pod (200) Propulsion Shielding Light Armor Plating Hacking Suite Hacking Suite Trap Reconfigurator Bomb Drone Bay Light EM Pulse Cannon Assault Rifle Datajack Mining Laser Peak State ------------ > --- POWER ------------ Improved Ion Engine > --- PROPULSION ------- Light Treads Wheel > --- UTILITY ---------- Heat Sink High-capacity Storage Unit > --- WEAPON ----------- Light EM Pulse Cannon Light EM Pulse Cannon > --- INVENTORY -------- Improved Ion Engine Light Treads Wheel Heat Sink High-capacity Storage Unit High-capacity Matter Pod Propulsion Shielding Light Armor Plating Light Armor Plating Hacking Suite Hacking Suite Trap Reconfigurator Bomb Drone Bay Light EM Pulse Cannon Assault Rifle Assault Rifle Assault Rifle Datajack Mining Laser [Rating: 14] Favorites ----------- Power Improved Ion Engine Engine Improved Ion Engine Propulsion Wheel Treads Light Treads Leg Aluminum Leg Wheel Wheel Utility High-capacity Storage Unit Device Heat Sink Storage High-capacity Storage Unit Protection Light Armor Plating Weapon Light EM Pulse Cannon Energy Gun Medium Laser Energy Cannon Light EM Pulse Cannon Ballistic Gun Assault Rifle Build | -11 -10 -10 -10 -9 ------- Run | Scr Mat Min Exi Min Slots Evolved . | . . . . . Power . | . . . . . Propulsion . | . . . . . Utility . | . . . . . Weapon . | . . . . . Parts Attached 31 | 6 17 . 1 7 Power 3 | 1 1 . . 1 Engine 3 | 1 1 . . 1 Core . | . . . . . Reactor . | . . . . . Propulsion 8 | 2 4 . . 2 Treads 3 | . 2 . . 1 Leg 2 | 2 . . . . Wheel 3 | . 2 . . 1 Hover . | . . . . . Flight . | . . . . . Utility 12 | 1 8 . 1 2 Device 7 | . 6 . . 1 Storage 4 | 1 2 . 1 . Processor . | . . . . . Hackware . | . . . . . Protection 1 | . . . . 1 Artifact . | . . . . . Weapon 8 | 2 4 . . 2 Energy Gun 1 | 1 . . . . Energy Cannon 3 | . 3 . . . Ballistic Gun 4 | 1 1 . . 2 Ballistic Cannon . | . . . . . Launcher . | . . . . . Special Weapon . | . . . . . Impact Weapon . | . . . . . Slashing Weapon . | . . . . . Piercing Weapon . | . . . . . Special Melee Weapon . | . . . . . Unidentified Prototypes . | . . . . . Parts Lost 10 | . . . . 10 Power 2 | . . . . 2 Propulsion 3 | . . . . 3 Utility 2 | . . . . 2 Weapon 3 | . . . . 3 Highest Loss Streak 10 | . . . . 10 Average Slot Usage (%) 98 | . 97 100 100 91 Engine 14 | . 14 14 14 14 Treads 11 | . 9 14 14 14 Leg 3 | . 7 . . . Wheel 12 | . 10 14 14 12 Device 13 | . 12 14 14 12 Storage 13 | . 13 14 14 14 Energy Cannon 23 | . 19 28 28 22 Ballistic Gun 4 | . 7 . . 2 Naked Turns . | . . . . . Heaviest Build 56 | 14 56 56 56 56 Greatest Support 40 | 20 40 10 10 10 Greatest Overweight (x) 5 | 2 5 5 5 5 Average Overweight (x) 4 | . 3 5 5 4 Largest Inventory Capacity 20 | 8 20 20 20 20 Average Capacity 18 | 7 17 20 20 20 Most Carried 20 | 6 20 20 20 20 Average Carried 17 | 3 16 19 19 18 Final Capacity 20 | 8 20 20 20 20 Final Carried 20 | 6 20 20 20 13 Class Distribution -------------------- 100% | Mutant Dominant Class ---------------- Mutant | -10/Materials Mutant | -10/Mines Mutant | -10/Exiles Mutant | -9/Mines Resources | -11 -10 -10 -10 -9 ----------- Run | Scr Mat Min Exi Min Matter Collected 488 | 224 244 10 10 . Remotely . | . . . . . Salvage Created 552 | . 527 . . 25 Parts 40 | . 40 . . . Haulers Intercepted . | . . . . . Recyclers Shooed . | . . . . . Parts Field Recycled . | . . . . . Retrieved Matter . | . . . . . Parts Self-Destructed . | . . . . . Prevented . | . . . . . Kills | -11 -10 -10 -10 -9 ------- Run | Scr Mat Min Exi Min Combat Hostiles Destroyed 17 | . 15 . . 2 Guns 2 | . 2 . . . Cannons 14 | . 12 . . 2 AOE 1 | . 1 . . . Classes Destroyed 6 | . 5 . . 1 Worker 2 | . 2 . . . Builder 1 | . 1 . . . Operator 3 | . 3 . . . Swarmer 8 | . 8 . . . Grunt 7 | . 7 . . . Assembled 2 | . . . . 2 Best Kill Streak 5 | . 5 . . 2 Combat Bots Only 4 | . 4 . . 2 Max Kills in Single Turn 2 | . 2 . . 1 Gunslinging . | . . . . . Exploded 1 | . 1 . . . Melee . | . . . . . Uniques/NPCs Destroyed . | . . . . . Combat | -11 -10 -10 -10 -9 -------- Run | Scr Mat Min Exi Min Damage Taken 1302 | . 335 . . 967 Core 253 | . 82 . . 171 Absorbed by Shields . | . . . . . Core Remaining (%) 100 | 100 . . . . Volleys Fired 43 | . 39 . . 4 Largest 2 | . 2 . . 2 Hottest 112 | . 112 . . 112 Shots Fired 78 | . 70 . . 8 Gun 16 | . 16 . . . Cannon 62 | . 54 . . 8 Launcher . | . . . . . Special . | . . . . . Kinetic 16 | . 16 . . . Thermal . | . . . . . Explosive . | . . . . . Electromagnetic 62 | . 54 . . 8 Robot Hit Streak 9 | . 7 . . 9 Robot Miss Streak 4 | . 4 . . . Penetration Max . | . . . . . Secondary Targets . | . . . . . Shots Hit Robots 50 | . 44 . . 6 Core Hits 30 | . 25 . . 5 Critical Kills . | . . . . . Critical Parts Destroyed . | . . . . . Critical Strikes . | . . . . . Melee Attacks . | . . . . . Impact . | . . . . . Slashing . | . . . . . Piercing . | . . . . . Sneak Attacks . | . . . . . Combat Hostiles . | . . . . . Follow-up Attacks . | . . . . . Damage Inflicted 1292 | . 1169 . . 123 Guns 132 | . 132 . . . Cannons 948 | . 833 . . 115 Explosions 204 | . 204 . . . Melee . | . . . . . Ramming 8 | . . . . 8 Kinetic 132 | . 132 . . . Thermal 204 | . 204 . . . Explosive . | . . . . . Electromagnetic 948 | . 833 . . 115 Impact . | . . . . . Slashing . | . . . . . Piercing . | . . . . . Highest Corruption 5 | . . . . 5 Average Corruption 5 | . . . . 5 Corruption Purged . | . . . . . Overload Shots . | . . . . . Overflow Damage 34 | . 34 . . . Projectiles 23 | . 23 . . . Explosions 11 | . 11 . . . Melee . | . . . . . Knockbacks . | . . . . . Impact . | . . . . . Kinetic . | . . . . . Secondary . | . . . . . Self-Inflicted Damage 35 | . 35 . . . Shots 2 | . 2 . . . Rammed 5 | . . . . 5 Targets Rammed 5 | . . . . 5 Kicked . | . . . . . Crushed . | . . . . . Highest Temperature 168 | . 168 . . 66 Average Temperature 52 | . 54 . . 39 Received Heat Transfer 219 | . 48 . . 171 Siege Activations . | . . . . . Robots Corrupted . | . . . . . Combat Hostiles . | . . . . . Parts Fried 5 | . 5 . . . Impact Corruptions . | . . . . . Robots Melted . | . . . . . Combat Hostiles . | . . . . . Parts Melted 1 | . 1 . . . Heat Transferred 350 | . 350 . . . Parts Sabotaged . | . . . . . Parts Stolen . | . . . . . Parts Stripped . | . . . . . Power Chain Reactions 5 | . 5 . . . Missiles Intercepted . | . . . . . Alert | -11 -10 -10 -10 -9 ------- Run | Scr Mat Min Exi Min Peak Influence 300 | . 300 81 . 15 Initial 81 | . . 81 . . Average 112 | . 128 81 . . Maximum Alert Level 1 | . 1 . . . Low Security (%) 77 | 100 70 100 . 100 Level 1 22 | . 29 . . . Level 2 . | . . . . . Level 3 . | . . . . . Level 4 . | . . . . . Level 5 . | . . . . . High Security . | . . . . . Max Security . | . . . . . Squads Dispatched 4 | . 4 . . . Investigation 1 | . 1 . . . Extermination . | . . . . . Reinforcement 3 | . 3 . . . Assault . | . . . . . Garrison . | . . . . . Intercept . | . . . . . Construction Impeded . | . . . . . Haulers Reinforced . | . . . . . Active Scanning Responses . | . . . . . Cargo Convoy Interrupts . | . . . . . Stealth | -11 -10 -10 -10 -9 --------- Run | Scr Mat Min Exi Min Distress Signals 3 | . 3 . . . Communications Jammed . | . . . . . Distress Signals . | . . . . . Times Spotted 63 | . 34 . . 29 Peak Tracking Total 15 | . 4 . . 15 Tactical Retreats 2 | . . . . 2 Traps | -11 -10 -10 -10 -9 ------- Run | Scr Mat Min Exi Min Traps Triggered 5 | . 5 . . . Indirectly . | . . . . . Trap Hack Attempts . | . . . . . Triggered . | . . . . . Disarmed . | . . . . . Reprogrammed . | . . . . . Reused . | . . . . . Traps Extracted . | . . . . . Installed . | . . . . . Triggered . | . . . . . Machines | -11 -10 -10 -10 -9 ---------- Run | Scr Mat Min Exi Min Machines Disabled 1 | . 1 . . . Max in Single Turn 1 | . 1 . . . Machines Sabotaged . | . . . . . Garrisons Compromised . | . . . . . Overloaded Fab Kills . | . . . . . Hacking | -11 -10 -10 -10 -9 --------- Run | Scr Mat Min Exi Min Machines Accessed 11 | . 7 1 3 . Terminals 5 | . 5 . . . Fabricators . | . . . . . Repair Stations . | . . . . . Recycling Units 2 | . 2 . . . Scanalyzers . | . . . . . Garrison Access . | . . . . . Total Hacks 28 | . 18 1 9 . Successful 17 | . 7 1 9 . Failed 10 | . 10 . . . Catastrophic 1 | . 1 . . . Database Lockouts 1 | . 1 . . . Manual 7 | . 6 . 1 . Terminals 15 | . 15 . . . Fabricators . | . . . . . Repair Stations . | . . . . . Recycling Units 3 | . 3 . . . Scanalyzers . | . . . . . Garrison Access . | . . . . . Terminal Hacks 14 | . 4 1 9 . Record 8 | . . . 8 . Prototype ID Bank 3 | . 3 . . . Open Door 1 | . . 1 . . Hauler Manifests 1 | . 1 . . . EX-Prototype ID Bank 1 | . . . 1 . Fabricator Hacks . | . . . . . Repair Station Hacks . | . . . . . Recycling Unit Hacks 3 | . 3 . . . Report Inventory 2 | . 2 . . . Retrieve Components 1 | . 1 . . . Scanalyzer . | . . . . . Garrison Access Hacks . | . . . . . Unauthorized Hacks . | . . . . . Terminals . | . . . . . Fabricators . | . . . . . Repair Stations . | . . . . . Recycling Units . | . . . . . Scanalyzers . | . . . . . Garrison Access . | . . . . . Data Cores Recovered . | . . . . . Used . | . . . . . Hacking Detections 6 | . 6 . . . Full Trace Events . | . . . . . Feedback Events . | . . . . . Feedback Blocked . | . . . . . Robot Schematics Acquired . | . . . . . Robots Built . | . . . . . Authchips . | . . . . . Time . | . . . . . Total Robot Build Rating . | . . . . . Part Schematics Acquired . | . . . . . Parts Built . | . . . . . Authchips . | . . . . . Time . | . . . . . Total Part Build Rating . | . . . . . Parts Repaired . | . . . . . Time . | . . . . . Parts Recycled . | . . . . . Recycled Matter . | . . . . . Retrieved Matter . | . . . . . Retrieved Components 9 | . 9 . . . Parts Scanalyzed . | . . . . . Part Schematics Acquired . | . . . . . Parts Damaged . | . . . . . Bothacking | -11 -10 -10 -10 -9 ------------ Run | Scr Mat Min Exi Min Used RIF Installer . | . . . . . Robots Hacked . | . . . . . Non-combat . | . . . . . Combat . | . . . . . Robot Hacks Applied . | . . . . . Relay Couplers Released . | . . . . . Fabnet Peak Effective % . | . . . . . Robots Rewired . | . . . . . Allies Hacked . | . . . . . Hacks Repelled . | . . . . . Allies | -11 -10 -10 -10 -9 -------- Run | Scr Mat Min Exi Min Total Allies . | . . . . . Largest Group . | . . . . . Highest-Rated Group . | . . . . . Highest-Rated Ally . | . . . . . Total Orders . | . . . . . Ally Attacks . | . . . . . Total Damage . | . . . . . Kills . | . . . . . Allies Corrupted . | . . . . . Allies Melted . | . . . . . Intel | -11 -10 -10 -10 -9 ------- Run | Scr Mat Min Exi Min Robot Analysis Total . | . . . . . Derelict Logs Recovered 1 | . . 1 . . Drone Launches . | . . . . . Drone Recoveries . | . . . . . Exploration | -11 -10 -10 -10 -9 ------------- Run | Scr Mat Min Exi Min Turns Passed 2731 | 62 1406 266 929 68 Spaces Moved 1611 | 43 785 164 598 21 Core 8 | 8 . . . . Treads 1 | . 1 . . . Legs 240 | 35 205 . . . Wheels 1362 | . 579 164 598 21 Hover . | . . . . . Flight . | . . . . . Fastest Speed 50 | 50 120 155 155 140 Average Speed 151 | 111 150 155 155 154 Slowest Speed 260 | 150 260 155 155 155 Overloaded Moves . | . . . . . Propulsion Burnouts . | . . . . . Robots Hopped . | . . . . . Cave-ins Triggered . | . . . . . Exploration Rate (%) 45 | 3 95 33 92 6 Regions Visited 4 Branch Regions 3 Pre-discovered Areas 1 | . . 1 . . Known Exits Taken . | . . . . . Unknown Exits Taken 4 | 1 1 1 1 . Scrap Searched . | . . . . . Spaces Dug . | . . . . . Terrain Destroyed 10 | . 10 . . . Melee . | . . . . . Projectile . | . . . . . AOE 10 | . 10 . . . Terrain Rammed . | . . . . . Walls Destroyed . | . . . . . Machines Disabled . | . . . . . Actions | -11 -10 -10 -10 -9 --------- Run | Scr Mat Min Exi Min Total 1819 | 54 947 178 601 39 Wait 65 | . 55 8 . 2 Move 1607 | 42 784 163 597 21 Hop . | . . . . . Pick Up 40 | 6 30 3 1 . Fast Attach 13 | 6 7 . . . Attach 13 | . 6 . . 7 Detach 5 | . 5 . . . Swap 5 | . 4 . 1 . Drop 23 | . 17 4 2 . Fire 43 | . 39 . . 4 Melee . | . . . . . Ram . | . . . . . Kick . | . . . . . Crush 5 | . . . . 5 Escape Stasis . | . . . . . Rewire . | . . . . . Trap . | . . . . . Miscellaneous . | . . . . . Route ------- -11/Scrapyard -10/Materials (discovered 4 exits: [*Mat x3] / *Min) -10/Mines -10/Exiles (discovered 2 exits: [*Min x2]) -9/Mines History --------- Turn | Location | Event 6 | -11/Scrapyard | Discovered new exit (range 16) 63 | -11/Scrapyard | Entered Materials 233 | -10/Materials | Discovered new exit (range 16) 273 | -10/Materials | Discovered new exit (range 16) 295 | -10/Materials | Central database locked down 302 | -10/Materials | Build established: Mutant 794 | -10/Materials | Discovered new exit (range 16) 1151 | -10/Materials | Discovered new exit (range 14) 1469 | -10/Materials | Entered Mines 1507 | -10/Mines | Learned location of Zion (-6) 1552 | -10/Mines | Found a hidden stash of uninstalled traps 1651 | -10/Mines | Deemed a non-threat by the Exiles lab entrance 1680 | -10/Mines | Found the Drone Emporium 1695 | -10/Mines | Found Prototype Device 1729 | -10/Mines | Discovered new exit (range 5) 1735 | -10/Mines | Entered Exiles 1757 | -10/Exiles | Discovered new exit (range 15) 1804 | -10/Exiles | Met 8R-AWN 1828 | -10/Exiles | Met EX-HEX 1935 | -10/Exiles | Visited The Gauntlet 2083 | -10/Exiles | Met EX-DEC 2165 | -10/Exiles | Met EX-BIN 2376 | -10/Exiles | Aligned with FarCom system 2377 | -10/Exiles | Given EX-Vault access code 2413 | -10/Exiles | Opened EX-Vault 2426 | -10/Exiles | Found Trap Reconfigurator 2459 | -10/Exiles | Warned to stay clear of 0b10 Research branches 2633 | -10/Exiles | Discovered new exit (range 14) 2664 | -10/Exiles | Left Exiles lab with Trap Reconfigurator 2664 | -10/Exiles | Entered Mines 2665 | -9/Mines | Assembled infested the area 2670 | -9/Mines | Assisted by a Guerilla fighting off Assembled 2713 | -9/Mines | Core integrity fell below 50% 2724 | -9/Mines | Core integrity fell below 20% 2732 | -9/Mines | Destroyed by as-25198 with Assembled Heavy Rifle Last Messages --------------- 02716_ Wheel destroyed. 02716_ as-63571 destroyed. 02717_ as-56279 sneak attacks. 02717_ D-53 Grenadier destroyed. 02718_ as-11619 misfires. 02720_ The unstable cave ceiling collapses. 02720_ Lgt. EM Pulse Cannon destroyed. 02722_ Slammed into as-11619. 02723_ as-11619 IFF system glitched. 02723_ as-75649 destroyed. 02726_ Slammed into as-11619. 02727_ Wheel destroyed. 02729_ Assault Rifle destroyed. 02729_ Heat Sink destroyed. 02729_ System corrupted by crushing effect (+1). 02729_ System corrupted by crushing effect (+4). 02730_ Imp. Ion Engine destroyed. 02731_ The unstable cave ceiling collapses. 02731_ Slammed into as-11619. [Achievement: Just Browsing] Map ----- +----------------------------------------------------+ | | | | | | | | | | | | | | | | | | | | | | | | | | | | | | | | | | | ???????????????????????????????????????????????? | | ???????????????##########??????????????????????? | | ??????????????## ####???????????????????? | | ?????????????### ##??????????????????? | | ?????????????# % a #??????????????????? | | ?????????????## ]= #a #??????????????????? | | ??????????????# %=! #aaaa##??????????????????? | | ??????????????# =%] ##a[ ##???????????????????? | | ??????????????# % aa @##???????????????????? | | ?????????? *a ##### #### #????????? | | ???????????###### #%% =%=% #????????? | | ????????????????###* ;# ######????????????? | | ?????????????????#;; % ### ##?????????????????? | | ?????????????????#### #?####??????????????????? | | ????????????????????# #???????????????????????? | | ????????????????????# #???????????????????????? | | ????????????????????# #???????????????????????? | | ????????????????????# #???????????????????????? | | ????????????????????# #???????????????????????? | | ????????????????????# #???????????????????????? | | ???????????????????? ????????????????????????? | | ????????????????????? ?????????????????????????? | | ???????????????????????????????????????????????? | | ???????????????????????????????????????????????? | | ???????????????????????????????????????????????? | | ???????????????????????????????????????????????? | | ???????????????????????????????????????????????? | | ???????????????????????????????????????????????? | | ???????????????????????????????????????????????? | | ???????????????????????????????????????????????? | | ???????????????????????????????????????????????? | | ???????????????????????????????????????????????? | | ???????????????????????????????????????????????? | +----------------------------------------------------+ Best States ------------- Heat Dissipation 35 Energy Generation 12 Energy Capacity 265 Matter Stores 300 Matter Capacity 300 Sight Range 16 Terrain Scan Density 10 Evasion (%) 55 Recoil Reduction 2 Item Schematics ----------------- None Robot Schematics ------------------ None Fabricated ------------ Nothing Alien Tech Used ----------------- None Achievements -------------- Just Browsing Challenges ------------ None Game ------ Seed DisruptionBombardmentUnit Manual? 0 Play Time 00:31:03 Cumulative 15.6 hours Start 2021.12.25 @ 12:52:40 End 2021.12.25 @ 13:45:22 Sessions 1 Manual Loads 0 Difficulty Rogue Special Mode Winter2021/Sauler Game No. 12 Rogue 12 Adventurer 0 Explorer 0 Win Type - Total 0 Types 0/0/0/0/0/0/0/0/0 Lore% 26 Gallery% 25 Achievement% 24 Wizard Run 0 Options --------- ASCII 1 Keyboard 1 Movement Vi Keybinds 0 Fullscreen 1 Font 18/X11 Map View 76x50 Tactical HUD 1 Map Filters NONE Filters NONE Steam 1 RUN: 8afba389-7753-4126-83b1-ead009616fe6